[Event "*** SCC Grand Prix: Titled Tuesday Blitz"]
[Site "Chess.com"]
[Date "2020.08.25"]
[Round "9"]
[White "Borsuk_Konstantin"]
[Black "eCztery"]
[Result "1-0"]
[WhiteElo "2538"]
[BlackElo "2406"]
[TimeControl "180+1"]
[EndTime "11:48:15 PDT"]
[Termination "Borsuk_Konstantin won by checkmate"]

1. d4 {[%clk 0:02:59.6]} 1... c5 {[%clk 0:02:48.5]} 2. c4 {[%clk 0:02:59.2]}
2... cxd4 {[%clk 0:02:48.2]} 3. Qxd4 {[%clk 0:02:59.2]} 3... Nc6 {[%clk
0:02:48]} 4. Qd1 {[%clk 0:02:59.9]} 4... g6 {[%clk 0:02:48.3]} 5. Nf3 {[%clk
0:02:57.6]} 5... Bg7 {[%clk 0:02:48.5]} 6. g3 {[%clk 0:02:57.5]} 6... Nf6 {[%clk
0:02:48.7]} 7. Bg2 {[%clk 0:02:58.1]} 7... O-O {[%clk 0:02:49.3]} 8. O-O {[%clk
0:02:58.7]} 8... d5 {[%clk 0:02:43.7]} 9. Nbd2 {[%clk 0:02:55.5]} 9... d4 {[%clk
0:02:29]} 10. a3 {[%clk 0:02:47]} 10... e5 {[%clk 0:02:27.8]} 11. Ne1 {[%clk
0:02:37.1]} 11... Be6 {[%clk 0:02:22.8]} 12. b4 {[%clk 0:02:33]} 12... Rc8
{[%clk 0:02:18.1]} 13. Bb2 {[%clk 0:02:32.5]} 13... Re8 {[%clk 0:02:10.6]} 14.
Rc1 {[%clk 0:02:21.5]} 14... a6 {[%clk 0:02:06.2]} 15. Nd3 {[%clk 0:02:18.9]}
15... Bf5 {[%clk 0:01:47.3]} 16. Nc5 {[%clk 0:02:18.3]} 16... Qe7 {[%clk
0:01:47.3]} 17. Qa4 {[%clk 0:02:04.6]} 17... e4 {[%clk 0:01:43.7]} 18. Ndb3
{[%clk 0:01:55.3]} 18... e3 {[%clk 0:01:16.5]} 19. f3 {[%clk 0:01:28.3]} 19...
d3 {[%clk 0:01:02.3]} 20. Nxd3 {[%clk 0:01:14.8]} 20... Bxd3 {[%clk 0:01:02.5]}
21. exd3 {[%clk 0:01:14.6]} 21... e2 {[%clk 0:01:03.4]} 22. Rfe1 {[%clk
0:01:12.3]} 22... Qe3+ {[%clk 0:01:01.5]} 23. Kh1 {[%clk 0:01:12.8]} 23... Ng4
{[%clk 0:00:53.4]} 24. fxg4 {[%clk 0:01:12.7]} 24... Bxb2 {[%clk 0:00:53.9]} 25.
Rc2 {[%clk 0:01:12.7]} 25... Bd4 {[%clk 0:00:52]} 26. Rcxe2 {[%clk 0:01:00.1]}
26... Qxe2 {[%clk 0:00:51.3]} 27. Rxe2 {[%clk 0:00:58.9]} 27... Rxe2 {[%clk
0:00:52.2]} 28. Bxc6 {[%clk 0:00:51.9]} 28... Ba7 {[%clk 0:00:15.4]} 29. Bxb7
{[%clk 0:00:45.7]} 29... Rce8 {[%clk 0:00:15.9]} 30. Be4 {[%clk 0:00:45.5]}
30... Re7 {[%clk 0:00:13.6]} 31. Nc5 {[%clk 0:00:42.9]} 31... f5 {[%clk
0:00:13.2]} 32. gxf5 {[%clk 0:00:41.9]} 32... gxf5 {[%clk 0:00:14.1]} 33. Bxf5
{[%clk 0:00:40.8]} 33... Rf2 {[%clk 0:00:12.8]} 34. Be4 {[%clk 0:00:35.8]} 34...
Kg7 {[%clk 0:00:11.4]} 35. Qxa6 {[%clk 0:00:24.6]} 35... Ref7 {[%clk 0:00:11.8]}
36. Ne6+ {[%clk 0:00:19.6]} 36... Kh6 {[%clk 0:00:09.1]} 37. Nf4+ {[%clk
0:00:18.1]} 37... Kg7 {[%clk 0:00:07.1]} 38. c5 {[%clk 0:00:17.2]} 38... Bb8
{[%clk 0:00:05.6]} 39. Ne6+ {[%clk 0:00:11.7]} 39... Kh6 {[%clk 0:00:05.2]} 40.
Nf4+ {[%clk 0:00:10.3]} 40... Kg7 {[%clk 0:00:05.2]} 41. Qe6 {[%clk 0:00:09.8]}
41... Bxf4 {[%clk 0:00:04.6]} 42. gxf4 {[%clk 0:00:08.2]} 42... R7xf4 {[%clk
0:00:05.5]} 43. c6 {[%clk 0:00:06.5]} 43... Rf6 {[%clk 0:00:05.7]} 44. Qd7+
{[%clk 0:00:06.1]} 44... Rf7 {[%clk 0:00:05.6]} 45. Qg4+ {[%clk 0:00:06.1]}
45... Kh6 {[%clk 0:00:05.6]} 46. Qh4+ {[%clk 0:00:04.9]} 46... Kg7 {[%clk
0:00:05.4]} 47. Kg1 {[%clk 0:00:05.3]} 47... Rf1+ {[%clk 0:00:04.5]} 48. Kg2
{[%clk 0:00:04.8]} 48... Rd1 {[%clk 0:00:05.4]} 49. Qg4+ {[%clk 0:00:04.8]}
49... Kh6 {[%clk 0:00:05.8]} 50. Qxd1 {[%clk 0:00:05.5]} 50... Rg7+ {[%clk
0:00:06.3]} 51. Kh1 {[%clk 0:00:06]} 51... Rf7 {[%clk 0:00:05.2]} 52. Qc1+
{[%clk 0:00:06.6]} 52... Kh5 {[%clk 0:00:05.2]} 53. c7 {[%clk 0:00:07.1]} 53...
h6 {[%clk 0:00:05.7]} 54. c8=Q {[%clk 0:00:06.5]} 54... Rg7 {[%clk 0:00:05.1]}
55. Qh3# {[%clk 0:00:06.7]} 1-0

[Event "*** SCC Grand Prix: Titled Tuesday Blitz"]
[Site "Chess.com"]
[Date "2020.08.25"]
[Round "9"]
[White "VincentKeymer"]
[Black "LiemLe"]
[Result "0-1"]
[WhiteElo "2827"]
[BlackElo "2957"]
[TimeControl "180+1"]
[EndTime "11:48:17 PDT"]
[Termination "LiemLe won by checkmate"]

1. Nf3 {[%clk 0:03:00.9]} 1... d5 {[%clk 0:02:58]} 2. e3 {[%clk 0:03:00.5]} 2...
Nf6 {[%clk 0:02:56.6]} 3. c4 {[%clk 0:03:00.7]} 3... e6 {[%clk 0:02:56.9]} 4.
Nc3 {[%clk 0:03:00.9]} 4... b6 {[%clk 0:02:46.2]} 5. cxd5 {[%clk 0:03:00.4]}
5... exd5 {[%clk 0:02:46.3]} 6. g3 {[%clk 0:03:00.7]} 6... Be7 {[%clk 0:02:34]}
7. Bg2 {[%clk 0:02:58.6]} 7... Ba6 {[%clk 0:02:34.1]} 8. b4 {[%clk 0:02:46.1]}
8... c6 {[%clk 0:02:27.1]} 9. b5 {[%clk 0:02:32]} 9... cxb5 {[%clk 0:02:28]} 10.
Nd4 {[%clk 0:02:28.4]} 10... b4 {[%clk 0:02:10.2]} 11. Qa4+ {[%clk 0:02:18.5]}
11... Qd7 {[%clk 0:02:10]} 12. Qxd7+ {[%clk 0:02:05.7]} 12... Nbxd7 {[%clk
0:02:10.9]} 13. Nxd5 {[%clk 0:02:06.1]} 13... Nxd5 {[%clk 0:02:10.7]} 14. Bxd5
{[%clk 0:02:07]} 14... Rc8 {[%clk 0:02:10.8]} 15. Nc6 {[%clk 0:02:01.7]} 15...
Nf6 {[%clk 0:01:17.7]} 16. Bg2 {[%clk 0:01:36.6]} 16... Kd7 {[%clk 0:00:46.4]}
17. Ne5+ {[%clk 0:01:25.6]} 17... Ke8 {[%clk 0:00:46.5]} 18. Nc6 {[%clk
0:00:50.1]} 18... Kd7 {[%clk 0:00:26.7]} 19. Nd4 {[%clk 0:00:50]} 19... Rc5
{[%clk 0:00:17.4]} 20. a3 {[%clk 0:00:41.9]} 20... bxa3 {[%clk 0:00:14.8]} 21.
Bxa3 {[%clk 0:00:39.7]} 21... Ra5 {[%clk 0:00:15.3]} 22. Bb2 {[%clk 0:00:36.3]}
22... Rxa1+ {[%clk 0:00:16.2]} 23. Bxa1 {[%clk 0:00:37.2]} 23... h5 {[%clk
0:00:10.2]} 24. Bc3 {[%clk 0:00:22.2]} 24... h4 {[%clk 0:00:08.5]} 25. Nc6
{[%clk 0:00:17.6]} 25... h3 {[%clk 0:00:08.1]} 26. Bf3 {[%clk 0:00:17.4]} 26...
Rc8 {[%clk 0:00:07.3]} 27. Ne5+ {[%clk 0:00:13.6]} 27... Ke8 {[%clk 0:00:06.9]}
28. g4 {[%clk 0:00:13.4]} 28... Bb5 {[%clk 0:00:05.7]} 29. g5 {[%clk 0:00:13]}
29... Nd7 {[%clk 0:00:06]} 30. Bg4 {[%clk 0:00:09]} 30... Rc5 {[%clk 0:00:05.7]}
31. Nxd7 {[%clk 0:00:06.4]} 31... Bxd7 {[%clk 0:00:06.6]} 32. Bxd7+ {[%clk
0:00:06.8]} 32... Kxd7 {[%clk 0:00:07.5]} 33. f4 {[%clk 0:00:07.4]} 33... g6
{[%clk 0:00:07.3]} 34. Kf2 {[%clk 0:00:07]} 34... a5 {[%clk 0:00:07.4]} 35. Rb1
{[%clk 0:00:07.1]} 35... Kc6 {[%clk 0:00:07.5]} 36. Kg3 {[%clk 0:00:07.2]} 36...
Rc4 {[%clk 0:00:06.9]} 37. Kxh3 {[%clk 0:00:07]} 37... a4 {[%clk 0:00:07.4]} 38.
Kg4 {[%clk 0:00:06.8]} 38... b5 {[%clk 0:00:07.8]} 39. Kf3 {[%clk 0:00:05.4]}
39... b4 {[%clk 0:00:08.1]} 40. Bd4 {[%clk 0:00:05.5]} 40... a3 {[%clk
0:00:08.4]} 41. Ke2 {[%clk 0:00:05.4]} 41... Kb5 {[%clk 0:00:08.7]} 42. Kd3
{[%clk 0:00:04.3]} 42... Rc6 {[%clk 0:00:09.2]} 43. Bc3 {[%clk 0:00:03.3]} 43...
Ka4 {[%clk 0:00:09.4]} 44. Bd4 {[%clk 0:00:03.2]} 44... b3 {[%clk 0:00:09.8]}
45. h4 {[%clk 0:00:02.4]} 45... Bb4 {[%clk 0:00:10.1]} 46. e4 {[%clk 0:00:02.5]}
46... Rc2 {[%clk 0:00:09.7]} 47. f5 {[%clk 0:00:02.5]} 47... Rxd2+ {[%clk
0:00:09.3]} 48. Kc4 {[%clk 0:00:03.1]} 48... a2 {[%clk 0:00:09.9]} 49. Ra1
{[%clk 0:00:03]} 49... Rxd4+ {[%clk 0:00:10]} 50. Kxd4 {[%clk 0:00:03.9]} 50...
Ka3 {[%clk 0:00:10.2]} 51. fxg6 {[%clk 0:00:03.4]} 51... fxg6 {[%clk 0:00:11.1]}
52. h5 {[%clk 0:00:03.9]} 52... b2 {[%clk 0:00:11.5]} 53. Rxa2+ {[%clk
0:00:03.3]} 53... Kxa2 {[%clk 0:00:12.4]} 54. hxg6 {[%clk 0:00:03.7]} 54... b1=Q
{[%clk 0:00:12.4]} 55. g7 {[%clk 0:00:04.6]} 55... Qb2+ {[%clk 0:00:12.8]} 56.
Kc4 {[%clk 0:00:04.8]} 56... Qxg7 {[%clk 0:00:13.7]} 57. Kxb4 {[%clk 0:00:05.7]}
57... Qxg5 {[%clk 0:00:13.9]} 58. Kc4 {[%clk 0:00:06.3]} 58... Qe5 {[%clk
0:00:14.8]} 59. Kd3 {[%clk 0:00:07.2]} 59... Kb2 {[%clk 0:00:15.4]} 60. Ke3
{[%clk 0:00:08]} 60... Kc3 {[%clk 0:00:16.3]} 61. Ke2 {[%clk 0:00:08.2]} 61...
Kd4 {[%clk 0:00:16.2]} 62. Kf2 {[%clk 0:00:09.1]} 62... Qxe4 {[%clk 0:00:17.1]}
63. Kg3 {[%clk 0:00:09.4]} 63... Ke3 {[%clk 0:00:16.9]} 64. Kh3 {[%clk
0:00:10.3]} 64... Qg6 {[%clk 0:00:16.9]} 65. Kh2 {[%clk 0:00:10.8]} 65... Kf2
{[%clk 0:00:16.5]} 66. Kh3 {[%clk 0:00:11.7]} 66... Qh5# {[%clk 0:00:16.9]} 0-1

[Event "*** SCC Grand Prix: Titled Tuesday Blitz"]
[Site "Chess.com"]
[Date "2020.08.25"]
[Round "9"]
[White "Orest_Vovk"]
[Black "Schandenfreude"]
[Result "1-0"]
[WhiteElo "2399"]
[BlackElo "2483"]
[TimeControl "180+1"]
[EndTime "11:48:18 PDT"]
[Termination "Orest_Vovk won by resignation"]

1. h3 {[%clk 0:03:00.9]} 1... d5 {[%clk 0:02:48.6]} 2. e4 {[%clk 0:03:00.8]}
2... dxe4 {[%clk 0:02:47.6]} 3. Nc3 {[%clk 0:03:01.1]} 3... Nf6 {[%clk
0:02:41.6]} 4. Qe2 {[%clk 0:03:00.9]} 4... Qd4 {[%clk 0:02:31.4]} 5. g4 {[%clk
0:02:59.4]} 5... e6 {[%clk 0:02:20.4]} 6. Bg2 {[%clk 0:02:59]} 6... Nc6 {[%clk
0:02:04.6]} 7. a3 {[%clk 0:02:58.5]} 7... Qe5 {[%clk 0:01:53.4]} 8. Nxe4 {[%clk
0:02:45.8]} 8... Nxe4 {[%clk 0:01:44]} 9. Qxe4 {[%clk 0:02:44.7]} 9... Qxe4+
{[%clk 0:01:39.9]} 10. Bxe4 {[%clk 0:02:45.6]} 10... Bd7 {[%clk 0:01:37.1]} 11.
Ne2 {[%clk 0:02:41.4]} 11... O-O-O {[%clk 0:01:36]} 12. d3 {[%clk 0:02:41.1]}
12... f6 {[%clk 0:01:36.4]} 13. Be3 {[%clk 0:02:39.8]} 13... e5 {[%clk
0:01:34.1]} 14. O-O-O {[%clk 0:02:38.3]} 14... Bd6 {[%clk 0:01:32.5]} 15. f4
{[%clk 0:02:29.3]} 15... exf4 {[%clk 0:01:32.1]} 16. Bxf4 {[%clk 0:02:29.1]}
16... Ne5 {[%clk 0:00:58.9]} 17. Rdf1 {[%clk 0:02:24]} 17... Rde8 {[%clk
0:00:55.3]} 18. Ng3 {[%clk 0:02:22]} 18... g6 {[%clk 0:00:48.3]} 19. Bh6 {[%clk
0:02:15.6]} 19... Nf7 {[%clk 0:00:29.5]} 20. Bf4 {[%clk 0:02:09]} 20... Ne5
{[%clk 0:00:29.8]} 21. Rhg1 {[%clk 0:02:00.2]} 21... Re7 {[%clk 0:00:29.5]} 22.
Bh6 {[%clk 0:01:50.4]} 22... Rf7 {[%clk 0:00:24.7]} 23. Bd5 {[%clk 0:01:49.9]}
23... Re7 {[%clk 0:00:19.3]} 24. Rxf6 {[%clk 0:01:49.2]} 24... c6 {[%clk
0:00:19]} 25. Ne4 {[%clk 0:01:35.5]} 25... Bc7 {[%clk 0:00:15.8]} 26. Bb3 {[%clk
0:01:31.6]} 26... b6 {[%clk 0:00:15.8]} 27. Nd6+ {[%clk 0:01:21.9]} 27... Bxd6
{[%clk 0:00:15.8]} 28. Rxd6 {[%clk 0:01:21.5]} 28... Kc7 {[%clk 0:00:15.5]} 29.
Rf6 {[%clk 0:01:20.2]} 29... Rhe8 {[%clk 0:00:15.5]} 30. Bf4 {[%clk 0:01:19.6]}
30... Kb7 {[%clk 0:00:15.6]} 31. Kb1 {[%clk 0:01:15.9]} 31... Nf3 {[%clk
0:00:14.2]} 32. Rf1 {[%clk 0:01:12.6]} 32... Nd4 {[%clk 0:00:14.3]} 33. Bf7
{[%clk 0:01:05.3]} 33... Rf8 {[%clk 0:00:12.2]} 34. Bh6 {[%clk 0:01:02.7]} 34...
Rd8 {[%clk 0:00:12]} 35. c3 {[%clk 0:00:59.1]} 35... Ne2 {[%clk 0:00:10.2]} 36.
d4 {[%clk 0:00:55.7]} 36... Ng3 {[%clk 0:00:09]} 37. R1f3 {[%clk 0:00:52.8]}
37... Ne4 {[%clk 0:00:09]} 38. R6f4 {[%clk 0:00:52]} 38... Nd2+ {[%clk
0:00:08.7]} 39. Kc2 {[%clk 0:00:49.9]} 39... Nxf3 {[%clk 0:00:09.6]} 40. Rxf3
{[%clk 0:00:50.3]} 40... Be6 {[%clk 0:00:07.9]} 41. Bxe6 {[%clk 0:00:48]} 41...
Rxe6 {[%clk 0:00:08.3]} 42. Rf7+ {[%clk 0:00:48.4]} 42... Ka6 {[%clk 0:00:08.9]}
43. Rxh7 {[%clk 0:00:48.8]} 43... Re2+ {[%clk 0:00:09.1]} 44. Bd2 {[%clk
0:00:47.7]} 44... Rf8 {[%clk 0:00:08.5]} 45. Kd3 {[%clk 0:00:43.2]} 45... Rh2
{[%clk 0:00:08.5]} 46. b4 {[%clk 0:00:38.7]} 46... Rf3+ {[%clk 0:00:07.5]} 47.
Be3 {[%clk 0:00:36.2]} 47... Rhxh3 {[%clk 0:00:05.4]} 48. Rxh3 {[%clk
0:00:35.8]} 48... Rxh3 {[%clk 0:00:06.3]} 49. c4 {[%clk 0:00:33.8]} 49... Rg3
{[%clk 0:00:05.6]} 50. g5 {[%clk 0:00:33.4]} 50... Rg4 {[%clk 0:00:05.6]} 51. a4
{[%clk 0:00:27.3]} 51... b5 {[%clk 0:00:05.8]} 52. axb5+ {[%clk 0:00:26.3]}
52... cxb5 {[%clk 0:00:06.7]} 53. c5 {[%clk 0:00:26.8]} 53... Kb7 {[%clk
0:00:05.9]} 54. d5 {[%clk 0:00:26.7]} 54... Rxb4 {[%clk 0:00:05.2]} 55. Bd4
{[%clk 0:00:24.9]} 55... a5 {[%clk 0:00:05.4]} 56. c6+ {[%clk 0:00:20.2]} 56...
Kc7 {[%clk 0:00:04.6]} 57. Be5+ {[%clk 0:00:19.5]} 57... Kc8 {[%clk 0:00:05.1]}
58. d6 {[%clk 0:00:14.4]} 58... Rb1 {[%clk 0:00:03]} 59. d7+ {[%clk 0:00:13.1]}
59... Kd8 {[%clk 0:00:03.6]} 60. Bf6+ {[%clk 0:00:12.6]} 1-0

[Event "*** SCC Grand Prix: Titled Tuesday Blitz"]
[Site "Chess.com"]
[Date "2020.08.25"]
[Round "9"]
[White "googlegoom"]
[Black "Maksimus1998"]
[Result "0-1"]
[WhiteElo "2455"]
[BlackElo "2603"]
[TimeControl "180+1"]
[EndTime "11:48:22 PDT"]
[Termination "Maksimus1998 won on time"]

1. Nf3 {[%clk 0:03:00.9]} 1... Nf6 {[%clk 0:02:59]} 2. b3 {[%clk 0:03:00.8]}
2... d5 {[%clk 0:02:58.5]} 3. Bb2 {[%clk 0:03:01.2]} 3... e6 {[%clk 0:02:58.3]}
4. e3 {[%clk 0:03:01.7]} 4... Be7 {[%clk 0:02:58.4]} 5. Be2 {[%clk 0:03:02.3]}
5... O-O {[%clk 0:02:58.9]} 6. O-O {[%clk 0:03:03.1]} 6... b6 {[%clk 0:02:59.3]}
7. d4 {[%clk 0:03:04]} 7... Bb7 {[%clk 0:02:59.8]} 8. Nbd2 {[%clk 0:03:04.4]}
8... Ne4 {[%clk 0:02:59.5]} 9. Nxe4 {[%clk 0:03:02.7]} 9... dxe4 {[%clk
0:02:59.5]} 10. Nd2 {[%clk 0:03:03.6]} 10... Nd7 {[%clk 0:02:58.7]} 11. c4
{[%clk 0:03:03.3]} 11... c5 {[%clk 0:02:58.6]} 12. Qc2 {[%clk 0:03:03.3]} 12...
f5 {[%clk 0:02:58.2]} 13. f3 {[%clk 0:02:54.9]} 13... Bg5 {[%clk 0:02:51.9]} 14.
f4 {[%clk 0:02:54.7]} 14... Bf6 {[%clk 0:02:51.8]} 15. dxc5 {[%clk 0:02:49.9]}
15... Nxc5 {[%clk 0:02:51]} 16. Rad1 {[%clk 0:02:49.3]} 16... Bxb2 {[%clk
0:02:42.7]} 17. Qxb2 {[%clk 0:02:48.9]} 17... Qe7 {[%clk 0:02:42.2]} 18. Nb1
{[%clk 0:02:46.4]} 18... a5 {[%clk 0:02:40.5]} 19. Nc3 {[%clk 0:02:45.4]} 19...
Rfd8 {[%clk 0:02:37.3]} 20. Qc2 {[%clk 0:02:40.8]} 20... Kf7 {[%clk 0:02:28.4]}
21. a3 {[%clk 0:02:27.1]} 21... g6 {[%clk 0:02:23.2]} 22. Rxd8 {[%clk
0:02:07.3]} 22... Rxd8 {[%clk 0:02:22.4]} 23. Rd1 {[%clk 0:02:08.2]} 23... Rxd1+
{[%clk 0:02:20.7]} 24. Qxd1 {[%clk 0:02:06.7]} 24... Bc6 {[%clk 0:02:13.3]} 25.
h3 {[%clk 0:01:44.6]} 25... Qf6 {[%clk 0:01:46.1]} 26. Qc2 {[%clk 0:01:34.9]}
26... h6 {[%clk 0:01:40.5]} 27. b4 {[%clk 0:01:27.1]} 27... axb4 {[%clk
0:01:40.1]} 28. axb4 {[%clk 0:01:28]} 28... Nd7 {[%clk 0:01:40]} 29. Qd2 {[%clk
0:01:12.4]} 29... Qe7 {[%clk 0:01:39.4]} 30. b5 {[%clk 0:01:04]} 30... Bb7
{[%clk 0:01:39.2]} 31. Na4 {[%clk 0:01:04.3]} 31... Ke8 {[%clk 0:00:59.8]} 32.
Qd4 {[%clk 0:01:02.5]} 32... Qb4 {[%clk 0:00:58.1]} 33. Nxb6 {[%clk 0:01:00]}
33... Nxb6 {[%clk 0:00:51.1]} 34. Qxb6 {[%clk 0:00:59.9]} 34... Qe1+ {[%clk
0:00:49.9]} 35. Bf1 {[%clk 0:01:00.3]} 35... Bc8 {[%clk 0:00:49.6]} 36. Qd4
{[%clk 0:00:56.4]} 36... g5 {[%clk 0:00:48]} 37. Qh8+ {[%clk 0:00:32.9]} 37...
Kd7 {[%clk 0:00:47.7]} 38. Qg7+ {[%clk 0:00:33.1]} 38... Kd8 {[%clk 0:00:28.9]}
39. Qf8+ {[%clk 0:00:30.1]} 39... Kd7 {[%clk 0:00:25.7]} 40. c5 {[%clk
0:00:30.4]} 40... Qxe3+ {[%clk 0:00:24.9]} 41. Kh1 {[%clk 0:00:30.8]} 41... Qxf4
{[%clk 0:00:23.1]} 42. c6+ {[%clk 0:00:21]} 42... Kc7 {[%clk 0:00:22.6]} 43. Kg1
{[%clk 0:00:09.5]} 43... Qe3+ {[%clk 0:00:20.1]} 44. Kh1 {[%clk 0:00:10.1]}
44... Qc1 {[%clk 0:00:17.9]} 45. Qe7+ {[%clk 0:00:08.9]} 45... Kb6 {[%clk
0:00:17.2]} 46. Qd8+ {[%clk 0:00:09.5]} 46... Kc5 {[%clk 0:00:16]} 47. Qf8+
{[%clk 0:00:07.3]} 47... Kd4 {[%clk 0:00:14.3]} 48. Qxc8 {[%clk 0:00:04.6]}
48... Qxf1+ {[%clk 0:00:14.3]} 49. Kh2 {[%clk 0:00:05.5]} 49... Qf4+ {[%clk
0:00:14.9]} 50. Kh1 {[%clk 0:00:05.3]} 50... e3 {[%clk 0:00:08.7]} 51. Qd7+
{[%clk 0:00:04.9]} 51... Ke4 {[%clk 0:00:02.6]} 52. Qxe6+ {[%clk 0:00:04.6]}
52... Kd3 {[%clk 0:00:03.1]} 53. Qd7+ {[%clk 0:00:03.6]} 53... Ke2 {[%clk
0:00:02]} 54. c7 {[%clk 0:00:03.5]} 54... Kf2 {[%clk 0:00:01.1]} 55. c8=Q {[%clk
0:00:01.1]} 55... e2 {[%clk 0:00:01.7]} 0-1

[Event "*** SCC Grand Prix: Titled Tuesday Blitz"]
[Site "Chess.com"]
[Date "2020.08.25"]
[Round "9"]
[White "Khazieva_Elza"]
[Black "AldokhinIvan"]
[Result "0-1"]
[WhiteElo "2416"]
[BlackElo "2540"]
[TimeControl "180+1"]
[EndTime "11:48:23 PDT"]
[Termination "AldokhinIvan won by resignation"]

1. e4 {[%clk 0:03:00.9]} 1... e6 {[%clk 0:02:59.5]} 2. d3 {[%clk 0:03:00.6]}
2... d5 {[%clk 0:02:59.9]} 3. Nd2 {[%clk 0:03:00.6]} 3... c5 {[%clk 0:03:00.3]}
4. Ngf3 {[%clk 0:03:00.5]} 4... Nc6 {[%clk 0:03:00.7]} 5. g3 {[%clk 0:03:00.9]}
5... g6 {[%clk 0:03:00.2]} 6. Bg2 {[%clk 0:03:01.2]} 6... Bg7 {[%clk 0:03:00.8]}
7. O-O {[%clk 0:03:01.2]} 7... Nge7 {[%clk 0:03:01.2]} 8. c3 {[%clk 0:02:55.1]}
8... b6 {[%clk 0:03:01]} 9. e5 {[%clk 0:02:47.6]} 9... Ba6 {[%clk 0:02:54.8]}
10. Qe2 {[%clk 0:02:43.2]} 10... O-O {[%clk 0:02:53.7]} 11. Re1 {[%clk 0:02:40]}
11... Qc7 {[%clk 0:02:50.7]} 12. h4 {[%clk 0:02:33.7]} 12... h6 {[%clk
0:02:35.8]} 13. Nf1 {[%clk 0:02:30.1]} 13... Rae8 {[%clk 0:02:26.6]} 14. N1h2
{[%clk 0:02:28]} 14... d4 {[%clk 0:02:09.1]} 15. c4 {[%clk 0:02:16.4]} 15... Bb7
{[%clk 0:02:08]} 16. Bf4 {[%clk 0:02:10.2]} 16... Nb8 {[%clk 0:02:04.8]} 17. Ng4
{[%clk 0:02:08.4]} 17... Nf5 {[%clk 0:02:04.6]} 18. Nf6+ {[%clk 0:01:54.5]}
18... Bxf6 {[%clk 0:02:04.9]} 19. exf6 {[%clk 0:01:55.4]} 19... Qd8 {[%clk
0:01:50.3]} 20. Ne5 {[%clk 0:01:29.7]} 20... Bxg2 {[%clk 0:01:44.9]} 21. Kxg2
{[%clk 0:01:30.6]} 21... Qxf6 {[%clk 0:01:43.5]} 22. Ng4 {[%clk 0:01:14.9]}
22... Qg7 {[%clk 0:01:27.5]} 23. Be5 {[%clk 0:01:14]} 23... f6 {[%clk
0:01:05.4]} 24. Bxb8 {[%clk 0:01:12]} 24... Qb7+ {[%clk 0:01:01.8]} 25. Qe4
{[%clk 0:00:38.1]} 25... Qxb8 {[%clk 0:01:01.1]} 26. Nxh6+ {[%clk 0:00:31.9]}
26... Kg7 {[%clk 0:00:52.2]} 27. Nxf5+ {[%clk 0:00:21.4]} 27... gxf5 {[%clk
0:00:51.4]} 28. Qf3 {[%clk 0:00:19.2]} 28... Rh8 {[%clk 0:00:46.8]} 29. Re2
{[%clk 0:00:13.2]} 29... Qc8 {[%clk 0:00:42.4]} 30. Rae1 {[%clk 0:00:12.8]}
30... e5 {[%clk 0:00:42.7]} 31. Qd5 {[%clk 0:00:10]} 31... f4 {[%clk 0:00:38.7]}
32. Qf3 {[%clk 0:00:05.4]} 32... fxg3 {[%clk 0:00:27.3]} 33. fxg3 {[%clk
0:00:05.3]} 33... Qd7 {[%clk 0:00:23.9]} 34. Rf1 {[%clk 0:00:05.5]} 34... Rh6
{[%clk 0:00:22.5]} 35. Ref2 {[%clk 0:00:05.5]} 35... Rg8 {[%clk 0:00:17.3]} 36.
Qe4 {[%clk 0:00:05.2]} 36... Rf8 {[%clk 0:00:15.4]} 37. Kh2 {[%clk 0:00:04.1]}
37... Rg6 {[%clk 0:00:15]} 38. h5 {[%clk 0:00:03.6]} 38... Rg4 {[%clk
0:00:14.3]} 39. Qf3 {[%clk 0:00:02.8]} 39... Rg5 {[%clk 0:00:13.3]} 40. Kg2
{[%clk 0:00:02.6]} 40... Rf7 {[%clk 0:00:11]} 41. Kh2 {[%clk 0:00:02.7]} 41...
Qe6 {[%clk 0:00:11.1]} 42. g4 {[%clk 0:00:02.6]} 42... Qxg4 {[%clk 0:00:11]} 43.
Qxg4 {[%clk 0:00:02.2]} 43... Rxg4 {[%clk 0:00:11.9]} 44. Rg2 {[%clk 0:00:02.4]}
44... Rxg2+ {[%clk 0:00:11.4]} 45. Kxg2 {[%clk 0:00:03.3]} 45... Kh6 {[%clk
0:00:11.9]} 46. Kf3 {[%clk 0:00:03.8]} 46... Kxh5 {[%clk 0:00:11.8]} 47. Ke4
{[%clk 0:00:03.9]} 47... Kg4 {[%clk 0:00:12.2]} 48. Rg1+ {[%clk 0:00:03.1]}
48... Kh3 {[%clk 0:00:12.6]} 49. Kf5 {[%clk 0:00:03.2]} 49... Kh2 {[%clk
0:00:11.2]} 50. Rg6 {[%clk 0:00:03.3]} 50... Rf8 {[%clk 0:00:09.4]} 51. Rg7
{[%clk 0:00:02.2]} 51... a6 {[%clk 0:00:08.5]} 52. Rb7 {[%clk 0:00:02.3]} 52...
b5 {[%clk 0:00:08.1]} 53. cxb5 {[%clk 0:00:02.7]} 53... c4 {[%clk 0:00:08.6]}
54. dxc4 {[%clk 0:00:02]} 54... Rd8 {[%clk 0:00:08.3]} 55. Re7 {[%clk
0:00:01.7]} 55... d3 {[%clk 0:00:08.4]} 56. b6 {[%clk 0:00:01.5]} 56... d2
{[%clk 0:00:08.5]} 0-1